[Event "*** SCC Grand Prix: Titled Tuesday Blitz"]
[Site "Chess.com"]
[Date "2020.06.02"]
[Round "7"]
[White "Kopytkin"]
[Black "rugbyclub"]
[Result "1-0"]
[WhiteElo "2316"]
[BlackElo "2114"]
[TimeControl "180+1"]
[EndTime "11:20:40 PDT"]
[Termination "Kopytkin won by checkmate"]

1. e4 {[%clk 0:03:00.9]} 1... e5 {[%clk 0:02:51.6]} 2. Nf3 {[%clk 0:03:00]} 2...
Nc6 {[%clk 0:02:51.8]} 3. Bc4 {[%clk 0:03:00.6]} 3... Bc5 {[%clk 0:02:51.5]} 4.
d3 {[%clk 0:03:00.5]} 4... Nf6 {[%clk 0:02:50.5]} 5. Nc3 {[%clk 0:03:00.7]} 5...
a6 {[%clk 0:02:47.1]} 6. Be3 {[%clk 0:02:57.1]} 6... Bxe3 {[%clk 0:02:41.3]} 7.
fxe3 {[%clk 0:02:57]} 7... d6 {[%clk 0:02:41.4]} 8. O-O {[%clk 0:02:57.1]} 8...
Ne7 {[%clk 0:02:40.6]} 9. Ng5 {[%clk 0:02:48.9]} 9... O-O {[%clk 0:02:39.9]} 10.
Qe1 {[%clk 0:01:57.5]} 10... Ng6 {[%clk 0:02:22.3]} 11. Ne2 {[%clk 0:01:57.1]}
11... c6 {[%clk 0:02:20.6]} 12. Bb3 {[%clk 0:01:55.1]} 12... h6 {[%clk
0:02:13.7]} 13. Nf3 {[%clk 0:01:54]} 13... d5 {[%clk 0:02:12.9]} 14. Ng3 {[%clk
0:01:48.7]} 14... Re8 {[%clk 0:02:07.8]} 15. Rd1 {[%clk 0:01:29.1]} 15... a5
{[%clk 0:02:06.6]} 16. a3 {[%clk 0:01:27.6]} 16... a4 {[%clk 0:02:05.8]} 17. Ba2
{[%clk 0:01:27.4]} 17... Qb6 {[%clk 0:02:00.1]} 18. b4 {[%clk 0:01:04.8]} 18...
axb3 {[%clk 0:01:57.8]} 19. Bxb3 {[%clk 0:01:04.4]} 19... Rxa3 {[%clk
0:01:57.5]} 20. Rb1 {[%clk 0:01:03.5]} 20... Qc5 {[%clk 0:01:55]} 21. h3 {[%clk
0:00:53.3]} 21... dxe4 {[%clk 0:01:52.2]} 22. dxe4 {[%clk 0:00:49.3]} 22... b5
{[%clk 0:01:48]} 23. Kh2 {[%clk 0:00:39.5]} 23... Be6 {[%clk 0:01:46]} 24. Nf5
{[%clk 0:00:25.4]} 24... Nxe4 {[%clk 0:01:40.8]} 25. Bxe6 {[%clk 0:00:24.3]}
25... Rxe6 {[%clk 0:01:33.3]} 26. N3h4 {[%clk 0:00:19.9]} 26... Nxh4 {[%clk
0:01:28.9]} 27. Qxh4 {[%clk 0:00:20.8]} 27... Nd2 {[%clk 0:01:16.4]} 28. Qd8+
{[%clk 0:00:20.5]} 28... Qf8 {[%clk 0:00:58.5]} 29. Qxd2 {[%clk 0:00:21.4]}
29... Kh7 {[%clk 0:00:46.7]} 30. e4 {[%clk 0:00:20.6]} 30... Qc5 {[%clk
0:00:43.8]} 31. Rf3 {[%clk 0:00:19]} 31... Ra2 {[%clk 0:00:42.5]} 32. Rc1 {[%clk
0:00:17.4]} 32... b4 {[%clk 0:00:38.4]} 33. Rg3 {[%clk 0:00:17.5]} 33... g5
{[%clk 0:00:37.7]} 34. h4 {[%clk 0:00:13.9]} 34... Ra3 {[%clk 0:00:28.8]} 35.
hxg5 {[%clk 0:00:12.2]} 35... Rxg3 {[%clk 0:00:19.3]} 36. Nxg3 {[%clk
0:00:12.5]} 36... hxg5 {[%clk 0:00:19.4]} 37. Qxg5 {[%clk 0:00:12.1]} 37... Rh6+
{[%clk 0:00:19.4]} 38. Nh5 {[%clk 0:00:12.6]} 38... Qd6 {[%clk 0:00:11.3]} 39.
g4 {[%clk 0:00:10.7]} 39... Qd4 {[%clk 0:00:09.4]} 40. Rf1 {[%clk 0:00:10.1]}
40... Qc3 {[%clk 0:00:07.7]} 41. Rxf7+ {[%clk 0:00:09.2]} 41... Kh8 {[%clk
0:00:07.4]} 42. Qxh6+ {[%clk 0:00:09.4]} 42... Kg8 {[%clk 0:00:05.7]} 43. Qg7#
{[%clk 0:00:09]} 1-0

[Event "*** SCC Grand Prix: Titled Tuesday Blitz"]
[Site "Chess.com"]
[Date "2020.06.02"]
[Round "7"]
[White "SketchyMoves"]
[Black "profofchess"]
[Result "1-0"]
[WhiteElo "2648"]
[BlackElo "2459"]
[TimeControl "180+1"]
[EndTime "11:20:42 PDT"]
[Termination "SketchyMoves won by resignation"]

1. e4 {[%clk 0:03:00.9]} 1... e6 {[%clk 0:03:00]} 2. f4 {[%clk 0:02:59.7]} 2...
d5 {[%clk 0:02:57.9]} 3. e5 {[%clk 0:02:59.8]} 3... d4 {[%clk 0:02:57.9]} 4. Nf3
{[%clk 0:02:59.7]} 4... c5 {[%clk 0:02:58]} 5. c3 {[%clk 0:02:59.9]} 5... Nh6
{[%clk 0:02:52.1]} 6. Na3 {[%clk 0:02:59.6]} 6... Be7 {[%clk 0:02:51.1]} 7. Bd3
{[%clk 0:02:58.5]} 7... Bd7 {[%clk 0:02:36.6]} 8. Nc2 {[%clk 0:02:54.3]} 8...
Nc6 {[%clk 0:02:09.4]} 9. O-O {[%clk 0:02:45.3]} 9... Qb6 {[%clk 0:02:00.7]} 10.
c4 {[%clk 0:02:40.6]} 10... a5 {[%clk 0:01:44]} 11. Be4 {[%clk 0:02:37.6]} 11...
Nb4 {[%clk 0:01:41.7]} 12. a3 {[%clk 0:02:29.5]} 12... Nxc2 {[%clk 0:01:41.2]}
13. Qxc2 {[%clk 0:02:28.3]} 13... Bc6 {[%clk 0:01:40.9]} 14. Re1 {[%clk
0:02:20.1]} 14... Bxe4 {[%clk 0:01:36.9]} 15. Rxe4 {[%clk 0:02:15.1]} 15... O-O
{[%clk 0:01:19.6]} 16. d3 {[%clk 0:02:12.2]} 16... a4 {[%clk 0:01:15.8]} 17. Bd2
{[%clk 0:02:10.6]} 17... Qc6 {[%clk 0:01:14.4]} 18. Rae1 {[%clk 0:02:09.9]}
18... b5 {[%clk 0:01:10.8]} 19. cxb5 {[%clk 0:02:08.1]} 19... Qxb5 {[%clk
0:01:10.3]} 20. Bc1 {[%clk 0:02:08.6]} 20... Rab8 {[%clk 0:01:04.3]} 21. Nd2
{[%clk 0:02:07.7]} 21... Nf5 {[%clk 0:00:58.4]} 22. Nc4 {[%clk 0:02:07.5]} 22...
h5 {[%clk 0:00:45.7]} 23. g3 {[%clk 0:02:05.4]} 23... g6 {[%clk 0:00:44.6]} 24.
Qe2 {[%clk 0:01:55.9]} 24... Bd8 {[%clk 0:00:36.2]} 25. Rf1 {[%clk 0:01:54.6]}
25... Bc7 {[%clk 0:00:27.6]} 26. Kg2 {[%clk 0:01:53.1]} 26... Ne7 {[%clk
0:00:24.9]} 27. h3 {[%clk 0:01:49.3]} 27... Nd5 {[%clk 0:00:19.9]} 28. g4 {[%clk
0:01:48.2]} 28... hxg4 {[%clk 0:00:19]} 29. hxg4 {[%clk 0:01:48.3]} 29... Kg7
{[%clk 0:00:19.2]} 30. f5 {[%clk 0:01:44.7]} 30... Rh8 {[%clk 0:00:16.9]} 31.
Qf3 {[%clk 0:01:40.2]} 31... exf5 {[%clk 0:00:14.1]} 32. gxf5 {[%clk 0:01:39.6]}
32... Qd7 {[%clk 0:00:11.1]} 33. Bg5 {[%clk 0:01:27.9]} 33... gxf5 {[%clk
0:00:10.4]} 34. Rh4 {[%clk 0:01:17.2]} 34... Rxh4 {[%clk 0:00:09.8]} 35. Bxh4
{[%clk 0:01:17.7]} 35... Rg8 {[%clk 0:00:09.8]} 36. Qxf5 {[%clk 0:01:08.8]}
36... Kf8+ {[%clk 0:00:08.6]} 37. Bg3 {[%clk 0:01:01.8]} 37... Qxf5 {[%clk
0:00:07.2]} 38. Rxf5 {[%clk 0:01:02.7]} 38... Ke7 {[%clk 0:00:06.9]} 39. Kf3
{[%clk 0:01:01.9]} 39... Ke6 {[%clk 0:00:05.3]} 40. Rh5 {[%clk 0:01:02]} 40...
f6 {[%clk 0:00:03.2]} 41. Bh2 {[%clk 0:00:56.9]} 41... Rg7 {[%clk 0:00:03.2]}
42. exf6 {[%clk 0:00:55]} 42... Rf7 {[%clk 0:00:03.6]} 43. Bxc7 {[%clk
0:00:52.3]} 43... Nxc7 {[%clk 0:00:03.3]} 44. Rxc5 {[%clk 0:00:50.1]} 44...
Rxf6+ {[%clk 0:00:03.6]} 45. Ke4 {[%clk 0:00:49.9]} 45... Ne8 {[%clk 0:00:02.5]}
46. Rc6+ {[%clk 0:00:45.2]} 46... Kd7 {[%clk 0:00:02.5]} 47. Rxf6 {[%clk
0:00:42.6]} 47... Nxf6+ {[%clk 0:00:03.4]} 48. Kxd4 {[%clk 0:00:43.2]} 48... Kc6
{[%clk 0:00:03.4]} 49. Ne5+ {[%clk 0:00:36.5]} 49... Kb5 {[%clk 0:00:03.4]} 50.
Nc4 {[%clk 0:00:36.6]} 50... Kc6 {[%clk 0:00:03.6]} 51. Nd2 {[%clk 0:00:36.4]}
51... Kb5 {[%clk 0:00:04.1]} 52. Ne4 {[%clk 0:00:36.8]} 52... Nd7 {[%clk
0:00:04]} 53. Nc3+ {[%clk 0:00:37.2]} 53... Ka5 {[%clk 0:00:03.7]} 54. Kd5
{[%clk 0:00:37.3]} 54... Nb6+ {[%clk 0:00:03.7]} 55. Kc6 {[%clk 0:00:37.5]}
55... Nc8 {[%clk 0:00:03.4]} 56. d4 {[%clk 0:00:37.3]} 56... Ne7+ {[%clk
0:00:04]} 57. Kc5 {[%clk 0:00:37.7]} 57... Nf5 {[%clk 0:00:04.4]} 58. d5 {[%clk
0:00:37.9]} 58... Ne3 {[%clk 0:00:04.2]} 59. d6 {[%clk 0:00:37.1]} 59... Ng4
{[%clk 0:00:03.6]} 60. d7 {[%clk 0:00:37.1]} 60... Ne5 {[%clk 0:00:03.3]} 61.
d8=Q+ {[%clk 0:00:36.9]} 1-0

[Event "*** SCC Grand Prix: Titled Tuesday Blitz"]
[Site "Chess.com"]
[Date "2020.06.02"]
[Round "7"]
[White "c63_amg"]
[Black "MomchilPetkov"]
[Result "0-1"]
[WhiteElo "2681"]
[BlackElo "2545"]
[TimeControl "180+1"]
[EndTime "11:20:42 PDT"]
[Termination "MomchilPetkov won by resignation"]

1. e4 {[%clk 0:03:00.9]} 1... c5 {[%clk 0:02:59.8]} 2. Nf3 {[%clk 0:03:00.7]}
2... d6 {[%clk 0:03:00.1]} 3. d4 {[%clk 0:03:01.1]} 3... cxd4 {[%clk 0:03:01]}
4. Qxd4 {[%clk 0:03:01.5]} 4... Nf6 {[%clk 0:03:01.6]} 5. Bg5 {[%clk 0:03:00.7]}
5... a6 {[%clk 0:02:51.3]} 6. Nc3 {[%clk 0:02:50.8]} 6... Nc6 {[%clk 0:02:49.7]}
7. Qd2 {[%clk 0:02:50.7]} 7... e6 {[%clk 0:02:45]} 8. Bc4 {[%clk 0:02:48.3]}
8... Be7 {[%clk 0:02:44.9]} 9. O-O {[%clk 0:02:48.6]} 9... O-O {[%clk 0:02:44]}
10. a4 {[%clk 0:02:45.5]} 10... Qc7 {[%clk 0:02:42]} 11. Ba2 {[%clk 0:02:32.3]}
11... b6 {[%clk 0:02:42]} 12. Rad1 {[%clk 0:02:30.4]} 12... Rd8 {[%clk
0:02:24.6]} 13. Rfe1 {[%clk 0:02:27.1]} 13... Bb7 {[%clk 0:02:23.5]} 14. Bh4
{[%clk 0:02:11.8]} 14... Rac8 {[%clk 0:02:18.4]} 15. h3 {[%clk 0:02:08.4]} 15...
Ne5 {[%clk 0:02:11.3]} 16. Nxe5 {[%clk 0:01:34.6]} 16... dxe5 {[%clk 0:02:09.8]}
17. Qe2 {[%clk 0:01:22.3]} 17... Bb4 {[%clk 0:02:01.5]} 18. Bxf6 {[%clk
0:01:14.2]} 18... gxf6 {[%clk 0:02:02.4]} 19. Qg4+ {[%clk 0:01:05.9]} 19... Kh8
{[%clk 0:02:00.8]} 20. Qh4 {[%clk 0:01:06.8]} 20... Qe7 {[%clk 0:01:54.8]} 21.
Rxd8+ {[%clk 0:01:00.4]} 21... Rxd8 {[%clk 0:01:53.8]} 22. Re3 {[%clk
0:01:00.8]} 22... Rg8 {[%clk 0:01:37.7]} 23. Ne2 {[%clk 0:00:56]} 23... f5
{[%clk 0:00:59.6]} 24. Qxe7 {[%clk 0:00:38.9]} 24... Bxe7 {[%clk 0:01:00.5]} 25.
exf5 {[%clk 0:00:39.4]} 25... Rxg2+ {[%clk 0:00:59.3]} 26. Kf1 {[%clk
0:00:39.9]} 26... Rh2 {[%clk 0:00:36.7]} 27. fxe6 {[%clk 0:00:33.2]} 27... fxe6
{[%clk 0:00:21.7]} 28. Bxe6 {[%clk 0:00:19.9]} 28... Bc5 {[%clk 0:00:17.8]} 29.
Rxe5 {[%clk 0:00:17]} 29... Rxf2+ {[%clk 0:00:17.7]} 30. Ke1 {[%clk 0:00:17.5]}
30... Rh2 {[%clk 0:00:16.5]} 31. Bd5 {[%clk 0:00:17.3]} 31... Bxd5 {[%clk
0:00:14.3]} 32. Rxd5 {[%clk 0:00:18.2]} 32... Rxh3 {[%clk 0:00:14.8]} 33. a5
{[%clk 0:00:16.9]} 33... Be3 {[%clk 0:00:14]} 34. Kf1 {[%clk 0:00:11.2]} 34...
Rf3+ {[%clk 0:00:12.1]} 35. Ke1 {[%clk 0:00:10.1]} 35... Rh3 {[%clk 0:00:10.2]}
36. Kf1 {[%clk 0:00:08.8]} 36... Rf3+ {[%clk 0:00:10.2]} 37. Ke1 {[%clk
0:00:07.3]} 37... bxa5 {[%clk 0:00:10.6]} 38. Rd3 {[%clk 0:00:06.5]} 38... Bf2+
{[%clk 0:00:09.3]} 39. Kf1 {[%clk 0:00:05.6]} 39... Rxd3 {[%clk 0:00:09.6]} 40.
cxd3 {[%clk 0:00:06.3]} 40... Bb6 {[%clk 0:00:09.2]} 41. Nc3 {[%clk 0:00:06.2]}
41... Kg7 {[%clk 0:00:09.2]} 42. Kg2 {[%clk 0:00:06.7]} 42... Bd4 {[%clk
0:00:09]} 43. Kf3 {[%clk 0:00:07.6]} 43... Bxc3 {[%clk 0:00:09.3]} 44. bxc3
{[%clk 0:00:05.6]} 44... a4 {[%clk 0:00:09.9]} 0-1

[Event "*** SCC Grand Prix: Titled Tuesday Blitz"]
[Site "Chess.com"]
[Date "2020.06.02"]
[Round "7"]
[White "IwkooO"]
[Black "praveenb2002"]
[Result "1-0"]
[WhiteElo "2581"]
[BlackElo "2717"]
[TimeControl "180+1"]
[EndTime "11:20:43 PDT"]
[Termination "IwkooO won by checkmate"]

1. e4 {[%clk 0:03:00.9]} 1... c6 {[%clk 0:03:00]} 2. d4 {[%clk 0:03:00.7]} 2...
d5 {[%clk 0:03:00.6]} 3. e5 {[%clk 0:03:01.2]} 3... Bf5 {[%clk 0:03:00.4]} 4.
Nd2 {[%clk 0:03:00.7]} 4... e6 {[%clk 0:02:58.4]} 5. Nb3 {[%clk 0:03:00.8]} 5...
Nd7 {[%clk 0:02:57.2]} 6. Nf3 {[%clk 0:03:00.6]} 6... Ne7 {[%clk 0:02:52.5]} 7.
Be2 {[%clk 0:03:00.6]} 7... Nc8 {[%clk 0:02:45.1]} 8. O-O {[%clk 0:02:59.9]}
8... a5 {[%clk 0:02:45.3]} 9. a4 {[%clk 0:02:58.9]} 9... Be7 {[%clk 0:02:42.5]}
10. Ne1 {[%clk 0:02:50.5]} 10... O-O {[%clk 0:02:36.9]} 11. Bd3 {[%clk
0:02:50.7]} 11... Bg6 {[%clk 0:02:25.4]} 12. Bxg6 {[%clk 0:02:50.3]} 12... hxg6
{[%clk 0:02:26.3]} 13. Nd3 {[%clk 0:02:51]} 13... Qc7 {[%clk 0:02:21.7]} 14. Qg4
{[%clk 0:02:43.5]} 14... c5 {[%clk 0:02:18.6]} 15. Nbxc5 {[%clk 0:02:34.6]}
15... Nxc5 {[%clk 0:02:18.5]} 16. dxc5 {[%clk 0:02:34.1]} 16... Bxc5 {[%clk
0:02:18.3]} 17. h4 {[%clk 0:02:31]} 17... Ne7 {[%clk 0:02:15.2]} 18. h5 {[%clk
0:02:30.5]} 18... gxh5 {[%clk 0:02:11.8]} 19. Qxh5 {[%clk 0:02:31.4]} 19... Nf5
{[%clk 0:02:09.1]} 20. Qg4 {[%clk 0:02:22.3]} 20... Bd4 {[%clk 0:02:01.4]} 21.
Qe2 {[%clk 0:02:14]} 21... Ng3 {[%clk 0:02:01.2]} 22. Qg4 {[%clk 0:02:14.2]}
22... Nf5 {[%clk 0:01:44]} 23. Qe2 {[%clk 0:02:13.5]} 23... Rfc8 {[%clk
0:01:37.9]} 24. c3 {[%clk 0:02:06.3]} 24... Bb6 {[%clk 0:01:37.7]} 25. Bf4
{[%clk 0:02:01.7]} 25... Qc4 {[%clk 0:01:32.9]} 26. Rfd1 {[%clk 0:01:38.9]}
26... Rc7 {[%clk 0:01:19.4]} 27. g4 {[%clk 0:01:09.9]} 27... Nh4 {[%clk
0:01:13.9]} 28. Bg3 {[%clk 0:01:08.5]} 28... Ng6 {[%clk 0:01:09.7]} 29. Kg2
{[%clk 0:01:07.4]} 29... Rac8 {[%clk 0:01:01.8]} 30. Nc1 {[%clk 0:01:04.5]}
30... Nf4+ {[%clk 0:00:50.7]} 31. Bxf4 {[%clk 0:01:04.8]} 31... Qxf4 {[%clk
0:00:51.6]} 32. Nd3 {[%clk 0:01:05.1]} 32... Qe4+ {[%clk 0:00:48.2]} 33. Qxe4
{[%clk 0:01:03.6]} 33... dxe4 {[%clk 0:00:49.1]} 34. Nf4 {[%clk 0:01:01]} 34...
Rc5 {[%clk 0:00:36.2]} 35. Rd7 {[%clk 0:01:00.3]} 35... Bc7 {[%clk 0:00:36.3]}
36. Rad1 {[%clk 0:00:50.4]} 36... Rxe5 {[%clk 0:00:33.3]} 37. Ne2 {[%clk
0:00:45]} 37... e3 {[%clk 0:00:26.1]} 38. f4 {[%clk 0:00:37.1]} 38... Re4 {[%clk
0:00:25.9]} 39. Re7 {[%clk 0:00:33.7]} 39... Bxf4 {[%clk 0:00:19.9]} 40. Kf3
{[%clk 0:00:33.4]} 40... Rxa4 {[%clk 0:00:13.9]} 41. Nxf4 {[%clk 0:00:31.2]}
41... Ra2 {[%clk 0:00:12.7]} 42. Rxb7 {[%clk 0:00:31]} 42... a4 {[%clk 0:00:12]}
43. Rdd7 {[%clk 0:00:27]} 43... a3 {[%clk 0:00:11.9]} 44. Rxf7 {[%clk
0:00:22.9]} 44... Rc6 {[%clk 0:00:03]} 45. Rxg7+ {[%clk 0:00:22.8]} 45... Kf8
{[%clk 0:00:03.4]} 46. Ng6+ {[%clk 0:00:22.7]} 46... Ke8 {[%clk 0:00:01.1]} 47.
Rg8# {[%clk 0:00:23.6]} 1-0

[Event "*** SCC Grand Prix: Titled Tuesday Blitz"]
[Site "Chess.com"]
[Date "2020.06.02"]
[Round "7"]
[White "AungTZ"]
[Black "checkmatequen"]
[Result "1-0"]
[WhiteElo "1955"]
[BlackElo "2246"]
[TimeControl "180+1"]
[EndTime "11:20:44 PDT"]
[Termination "AungTZ won by checkmate"]

1. e4 {[%clk 0:03:00.9]} 1... c5 {[%clk 0:02:58.4]} 2. Nf3 {[%clk 0:02:58.9]}
2... e6 {[%clk 0:02:55.6]} 3. d4 {[%clk 0:02:57.1]} 3... cxd4 {[%clk 0:02:55.1]}
4. Nxd4 {[%clk 0:02:57.6]} 4... a6 {[%clk 0:02:56]} 5. Nc3 {[%clk 0:02:57.5]}
5... b5 {[%clk 0:02:54.7]} 6. a3 {[%clk 0:02:56.7]} 6... Bb7 {[%clk 0:02:51.9]}
7. Bd3 {[%clk 0:02:56.2]} 7... Nf6 {[%clk 0:02:49.8]} 8. O-O {[%clk 0:02:55.7]}
8... Qc7 {[%clk 0:02:49.9]} 9. Qe2 {[%clk 0:02:53]} 9... d6 {[%clk 0:02:48.6]}
10. Be3 {[%clk 0:02:51.1]} 10... Nbd7 {[%clk 0:02:46.5]} 11. Kh1 {[%clk
0:02:50.7]} 11... Ne5 {[%clk 0:02:43.4]} 12. f4 {[%clk 0:02:48]} 12... Neg4
{[%clk 0:02:36.3]} 13. Bg1 {[%clk 0:02:46.2]} 13... h5 {[%clk 0:02:35.2]} 14.
Rae1 {[%clk 0:02:43.3]} 14... h4 {[%clk 0:02:28.8]} 15. h3 {[%clk 0:02:37]}
15... Nh5 {[%clk 0:02:28.4]} 16. Qxg4 {[%clk 0:02:30.1]} 16... Ng3+ {[%clk
0:02:27.2]} 17. Kh2 {[%clk 0:02:30.1]} 17... Nxf1+ {[%clk 0:02:22.9]} 18. Rxf1
{[%clk 0:02:27.1]} 18... O-O-O {[%clk 0:02:23.4]} 19. f5 {[%clk 0:02:20.6]}
19... d5+ {[%clk 0:02:16.6]} 20. Kh1 {[%clk 0:02:19.5]} 20... dxe4 {[%clk
0:02:14.7]} 21. Bxe4 {[%clk 0:02:17.5]} 21... Bc5 {[%clk 0:02:03.6]} 22. fxe6
{[%clk 0:02:06.3]} 22... Bxd4 {[%clk 0:01:50.6]} 23. e7+ {[%clk 0:02:01.7]}
23... Rd7 {[%clk 0:01:49.8]} 24. Bxd4 {[%clk 0:01:54.7]} 24... Bxe4 {[%clk
0:01:42.6]} 25. Nxe4 {[%clk 0:01:51.9]} 25... Kb8 {[%clk 0:01:39.7]} 26. Nc5
{[%clk 0:01:33.3]} 26... Rd6 {[%clk 0:01:30.4]} 27. Re1 {[%clk 0:01:24.1]} 27...
Re8 {[%clk 0:01:16.2]} 28. Qe4 {[%clk 0:01:13]} 28... g6 {[%clk 0:00:55.6]} 29.
b4 {[%clk 0:01:11.3]} 29... f5 {[%clk 0:00:49.8]} 30. Qe3 {[%clk 0:01:05.8]}
30... Kc8 {[%clk 0:00:40.7]} 31. c3 {[%clk 0:00:49.9]} 31... Rc6 {[%clk
0:00:29.7]} 32. Qf3 {[%clk 0:00:44.4]} 32... f4 {[%clk 0:00:22.6]} 33. Qg4+
{[%clk 0:00:36]} 33... Kb8 {[%clk 0:00:15.7]} 34. Be5 {[%clk 0:00:35.6]} 34...
Rd6 {[%clk 0:00:12.5]} 35. Nxa6+ {[%clk 0:00:34.3]} 35... Rxa6 {[%clk
0:00:12.6]} 36. Bxc7+ {[%clk 0:00:34.2]} 36... Kxc7 {[%clk 0:00:13.5]} 37. Qxf4+
{[%clk 0:00:33.7]} 37... Kd7 {[%clk 0:00:13.8]} 38. Qxh4 {[%clk 0:00:33.2]}
38... Rd6 {[%clk 0:00:13.1]} 39. Qg5 {[%clk 0:00:31.8]} 39... Kc7 {[%clk
0:00:13.2]} 40. Qxb5 {[%clk 0:00:30.9]} 40... Rb8 {[%clk 0:00:09.8]} 41. Qxb8+
{[%clk 0:00:29.5]} 41... Kxb8 {[%clk 0:00:09.2]} 42. e8=Q+ {[%clk 0:00:30.4]}
42... Kb7 {[%clk 0:00:09.8]} 43. Re7+ {[%clk 0:00:28.8]} 43... Kb6 {[%clk
0:00:10.7]} 44. Qb8+ {[%clk 0:00:28.2]} 44... Kc6 {[%clk 0:00:10.8]} 45. Qc7+
{[%clk 0:00:25.3]} 45... Kb5 {[%clk 0:00:10.3]} 46. Qxd6 {[%clk 0:00:23.6]}
46... Ka4 {[%clk 0:00:10.5]} 47. Qd5 {[%clk 0:00:21.8]} 47... g5 {[%clk
0:00:09.1]} 48. Ra7# {[%clk 0:00:21.2]} 1-0

[Event "*** SCC Grand Prix: Titled Tuesday Blitz"]
[Site "Chess.com"]
[Date "2020.06.02"]
[Round "7"]
[White "stolencandy13"]
[Black "abhidabhi"]
[Result "1-0"]
[WhiteElo "2577"]
[BlackElo "2705"]
[TimeControl "180+1"]
[EndTime "11:20:45 PDT"]
[Termination "stolencandy13 won by resignation"]

1. e4 {[%clk 0:03:00.9]} 1... e5 {[%clk 0:02:59.2]} 2. Nf3 {[%clk 0:02:58.9]}
2... Nc6 {[%clk 0:02:59.7]} 3. Nc3 {[%clk 0:02:59]} 3... Nf6 {[%clk 0:02:59.2]}
4. d4 {[%clk 0:02:59.5]} 4... exd4 {[%clk 0:02:58.9]} 5. Nxd4 {[%clk 0:03:00.4]}
5... Bb4 {[%clk 0:02:58.9]} 6. Nxc6 {[%clk 0:03:00.1]} 6... bxc6 {[%clk
0:02:59.8]} 7. Bd3 {[%clk 0:03:00.6]} 7... d5 {[%clk 0:02:59.5]} 8. exd5 {[%clk
0:03:01.5]} 8... O-O {[%clk 0:02:59.3]} 9. O-O {[%clk 0:02:41.4]} 9... cxd5
{[%clk 0:02:58.9]} 10. h3 {[%clk 0:02:38.3]} 10... c6 {[%clk 0:02:56.7]} 11. Qf3
{[%clk 0:02:37.5]} 11... Re8 {[%clk 0:02:52.2]} 12. Bf4 {[%clk 0:02:36.9]} 12...
Be6 {[%clk 0:02:48.5]} 13. Ne2 {[%clk 0:02:33.6]} 13... Bd6 {[%clk 0:02:46.8]}
14. Rfe1 {[%clk 0:02:28.8]} 14... a5 {[%clk 0:02:40.3]} 15. Rad1 {[%clk
0:02:21.1]} 15... a4 {[%clk 0:02:31.8]} 16. c4 {[%clk 0:02:17.6]} 16... Bxf4
{[%clk 0:02:24.9]} 17. Nxf4 {[%clk 0:02:16.7]} 17... Qd6 {[%clk 0:02:24.9]} 18.
cxd5 {[%clk 0:02:10.8]} 18... Bxd5 {[%clk 0:02:19]} 19. Nxd5 {[%clk 0:02:05]}
19... Rxe1+ {[%clk 0:02:14.7]} 20. Rxe1 {[%clk 0:02:05.9]} 20... cxd5 {[%clk
0:02:14.7]} 21. Qe3 {[%clk 0:02:00.5]} 21... a3 {[%clk 0:02:09.2]} 22. b3 {[%clk
0:01:51.1]} 22... h6 {[%clk 0:02:03.5]} 23. Qd4 {[%clk 0:01:45.5]} 23... Rc8
{[%clk 0:02:00]} 24. b4 {[%clk 0:01:35.4]} 24... Qc7 {[%clk 0:01:40.9]} 25. b5
{[%clk 0:01:29.2]} 25... Qc3 {[%clk 0:01:37.6]} 26. Qxc3 {[%clk 0:01:26.3]}
26... Rxc3 {[%clk 0:01:37.2]} 27. b6 {[%clk 0:01:25.8]} 27... Rxd3 {[%clk
0:01:22.6]} 28. b7 {[%clk 0:01:26.1]} 28... Nd7 {[%clk 0:01:22.4]} 29. Re7
{[%clk 0:01:25.6]} 29... Rd1+ {[%clk 0:01:16.7]} 30. Kh2 {[%clk 0:01:25.7]}
30... Nb8 {[%clk 0:01:16.1]} 31. Re8+ {[%clk 0:01:14.5]} 31... Kh7 {[%clk
0:01:15.6]} 32. Rxb8 {[%clk 0:01:15.1]} 32... Rb1 {[%clk 0:01:15.1]} 33. Kg3
{[%clk 0:01:15.6]} 33... Rb2 {[%clk 0:01:10.7]} 34. Kf3 {[%clk 0:01:14.5]} 34...
Kg6 {[%clk 0:01:04.1]} 35. Ke3 {[%clk 0:01:13.9]} 35... Rb4 {[%clk 0:01:04.4]}
36. Kd3 {[%clk 0:01:07.5]} 36... d4 {[%clk 0:00:49.7]} 37. g3 {[%clk 0:01:02.1]}
37... h5 {[%clk 0:00:49]} 38. Ke4 {[%clk 0:00:59.5]} 38... Kf6 {[%clk
0:00:47.5]} 39. h4 {[%clk 0:00:56.3]} 39... g6 {[%clk 0:00:42.5]} 40. f3 {[%clk
0:00:53.4]} 40... Ke7 {[%clk 0:00:40.5]} 41. g4 {[%clk 0:00:51.1]} 41... Kf6
{[%clk 0:00:26.9]} 42. g5+ {[%clk 0:00:45.9]} 42... Ke7 {[%clk 0:00:26]} 43. Kd3
{[%clk 0:00:46.5]} 43... Rb2 {[%clk 0:00:16.7]} 44. Kxd4 {[%clk 0:00:44.3]}
44... Rb1 {[%clk 0:00:16.1]} 45. Ke4 {[%clk 0:00:42.3]} 45... Rb4+ {[%clk
0:00:15.6]} 46. Ke3 {[%clk 0:00:42.3]} 46... Rb2 {[%clk 0:00:15.5]} 47. Kd3
{[%clk 0:00:42.1]} 47... Rb4 {[%clk 0:00:14.3]} 48. Kc3 {[%clk 0:00:42]} 48...
Rb2 {[%clk 0:00:13.3]} 49. f4 {[%clk 0:00:41.7]} 49... Rb5 {[%clk 0:00:11.8]}
50. Kc4 {[%clk 0:00:41.4]} 50... Rb2 {[%clk 0:00:11.1]} 51. f5 {[%clk
0:00:36.8]} 51... gxf5 {[%clk 0:00:09.1]} 52. g6 {[%clk 0:00:37.2]} 52... fxg6
{[%clk 0:00:03.5]} 53. Rh8 {[%clk 0:00:36.6]} 1-0